Workbook

Sheet Titel
D13: Rekenmodel voor het berekenen van de plankosten
D14: bij kostenverhaal zonder tijdvak 2024-2
D17: Dit rekenmodel kan worden toegepast bij omgevingsplannen waarover na 1 oktober 2024 een besluit wordt genomen.
D18: Het rekenmodel bevat de nieuwe, geindexeerde tarieven voor de plankosten die op 29 december 2023 bekend zijn gemaakt in de Staatscourant.
D19: In het rekenmodel is ook de voorgenomen wijziging van het hoofdstuk kostenverhaal van de Omgevingsregeling verwerkt.

Sheet Invulinstructie
B3: Uitgangspunten plankostenregels kostenverhaal ZONDER tijdvak
C5: De plankosten worden bepaald voor de voorbereiding en ontwikkeling van het gehele kostenverhaalsgebied zoals dat in het Omgevingsplan is aangewezen.
C6: Het bedrag van de plankosten dat met behulp van dit rekenmodel wordt berekend, is het maximum van de te verhalen plankosten in het kostenverhaalsgebied als geheel.
B8: Let op
C9: De plankosten voor het aanleggen van bovenwijkse voorzieningen worden NIET met deze regeling geraamd, maar worden separaat in de kostenverhaalsregels opgenomen (artikel 13.1 Or).
C10: De uren voor het (laten) uitvoeren van onderzoeken ten behoeve van het Omgevingsplan worden NIET met deze regeling geraamd maar worden separaat in de kostenverhaalsregels opgenomen (artikel 13.1).
C12: De uren die te maken hebben met individuele dienstverlening (lees aanvraag omgevingsvergunning) worden NIET via deze regeling geraamd maar dienen via de legesverordening te worden verhaald.
C14: Het systeem berekent zelf over hoeveel jaren plankosten die voorafgaand aan de vastelling van het omgevingsplan zijn gemaakt mogen worden doorberekend (artikel 13.3 Or).
C16: Dit rekenmodel wordt niet gebruikt bij kleine plannen. Dat zijn plannen voor het bouwen, verbouwen of uitbreiden van gebouwen met een klein oppervlakte (artikel 13.5 Or).
C18: De plankosten bij kostenverhaal zonder tijdvak, zijn alleen de plankosten voor gronden die een openbare functie krijgen en niet de plankosten voor de gronden waar de bouwactiviteiten plaatsvinden.
B21: Invulinstructie
C22: Om het kostenverhaal te bepalen bij het kostenverhaalsgebied zoals dat in het Omgevingsplan is aangegeven worden de volgende stappen gezet:
B24: Vragenlijst | C24: 1e stap | D24: Alle vragen in de vragenlijst beantwoorden.De gemeente heeft een actieve rol.
B26: Produktenlijst | C26: 2e stap | D26: Met de button op de produktenlijst moeten de antwoorden uit de vragenlijst opgehaald worden.
B28: Resultaat | C28: 3e stap | D28: In het resultaatblad is het bedrag aan plankosten te zien dat onderdeel is van de kostenverhaalsregel in het Omgevingsplan (het te bepalen kostenplafond).
B31: Overige
B32: Vragenlijst | D32: in de kolommen M tm O in het tabblad vragenlijst kunnen notities worden opgenomen.
B33: Hulpblad | D33: In het hulpblad zijn enkele kengetallen weergegeven en is de berekening van de vtu kosten bij sloop, ophogen/voorbelasten en bouw-en woonrijpmaken te zien.
C38: Ministerie van Binnenlandse Zaken en Koninkrijksrelaties

Sheet Vragenlijst
Q6: deze kolommen worden verborgen, en zijn niet opvraagbaar
C7: Plankostenregels bij kostenverhaal ZONDER tijdvak
C9: Vragenlijst
E10: Datum | F10: =TODAY() -> 2024-02-28
E11: Gemeente | F11: ….
E12: Projectnaam | F12: ….
E13: Kostenverhaalsgebied | F13: ….
E14: Scenario | F14: …. | M14: AANTEKENINGEN
D17: I | E17: Algemeen | L17: vraag: | N17: Algemeen
D19: 1 | E19: Wat is de looptijd van de ontwikkeling vanaf het moment van vaststellen van het omgevingsplan ? | I19: jaar | L19: =+D19 -> 1 | M19: aantekeningen | Q19: =+H19 -> 0
E20: De voorbereidingstijd wordt door het systeem zelf berekend. | H20: de totale looptijd van de ontwikkeling is dan | J20: =IF(H19>0,+Q20+H19,0) -> 0 | K20: jaar | Q20: =+IF(Produktenlijst!N20<=130%,2,IF(Produktenlijst!N20<150%,3,IF(Produktenlijst!N20>=150%,4,0))) -> 2 | R20: jaar voorbereidingstijd
D23: 2 | E23: Wat is de omvang van het kostenverhaalsgebied ? | I23: m2 | J23: =+H23/10000 -> 0 | K23: ha | L23: =+D23 -> 2 | M23: aantekeningen | Q23: =J23 -> 0
E24: exclusief te handhaven percelen
D26: 3 | E26: Wat voor een kostenverhaalsgebied is het? | L26: =+D26 -> 3 | M26: aantekeningen | Q26: FALSE | R26: FALSE | S26: FALSE | T26: FALSE | U26: FALSE | V26: =+IF(Q26=TRUE,1,IF(R26=TRUE,0.5,IF(S26=TRUE,0.25,0))) -> 0 | W26: IF I
Q30: =+IF(Q26=TRUE,"historisch gebied", "") ->  | R30: =+IF(R26=TRUE,"binnenstedelijke locatie", "") ->  | S30: =+IF(S26=TRUE,"inbreidingslocatie", "") ->  | T30: =+IF(T26=TRUE,"uitbreidingslocatie", "") ->  | U30: =+IF(U26=TRUE,"uitleglocatie", "") -> 
D31: 4 | E31: Betreft het een herstructurerings danwel transformatie opgave ? | L31: 4 | M31: aantekeningen | Q31: FALSE | R31: FALSE | V31: =IF(Q31=TRUE,1.5,0) -> 0 | W31: IF II
Q32: =+IF(Q31=TRUE,"herstructurering/transformatie", "") -> 
D35: 5 | E35: Zijn de volgende onderzoeken nodig voor het kostenverhaalsgebied? | L35: 5 | M35: aantekeningen | Q35: FALSE | R35: =+IF(Q35=TRUE,"MER", "") ->  | U35: =+IF(Q35=TRUE,0.5,0) -> 0
Q36: FALSE | R36: =+IF(Q36=TRUE," /Nader luchtonderzoek", "") ->  | U36: =+IF(Q36=TRUE,0.4,0) -> 0 | V36: =+MAX(U35:U38) -> 0 | W36: IF V
Q37: FALSE | R37: =+IF(Q37=TRUE," Aanvullend archeologisch onderzoek ", "") ->  | U37: =+IF(Q37=TRUE,0.3,0) -> 0
U38: =+IF(Q154=TRUE,0.2,0) -> 0 | V38: =IF(U38>0,"bodemsanering","") -> 
D41: 6 | E41: Wat zijn de (maximaal) beoogde kostenverhaalsplichtige bouwactiviteiten in het kostenverhaalsgebied volgens het gekozen scenario ? | F41: woonfunctie | I41: aantal | L41: 6 | M41: aantekeningen | Q41: =+H41 -> 0 | R41: =IF(Q41>1,1,0) -> 0 | S41: =+IF(Q41>0,F41,"") ->  | U41: =+IF(R46>1,0.1,0)*R41 -> 0
F42: (lichte) industriefunctie | I42: m2 uitgeefbaar | Q42: =+H42 -> 0 | R42: =IF(Q42>1,1,0) -> 0 | S42: =+IF(Q42>0,F42,"") ->  | U42: =+IF(R46>1,0.1,-0.25)*R42 -> 0
F43: kantoorfunctie/winkelfunctie/sportfunctie | I43: m2 bvo | Q43: =+H43 -> 0 | R43: =IF(Q43>1,1,0) -> 0 | S43: =+IF(Q43>0,F43,"") ->  | U43: =0.1*R43 -> 0 | V43: =SUM(U41:U45) -> 0 | W43: IF IV
F44: gezondheidszorgfunctie/onderwijsfunctie | I44: m2 bvo | Q44: =+H44 -> 0 | R44: =IF(Q44>1,1,0) -> 0 | S44: =+IF(Q44>0,F44,"") ->  | U44: =0.25*R44 -> 0
S45: =+IF(Q45>0,F45,"") ->  | U45: =0.1*R45 -> 0
Q46: =SUM(Q42:Q45) -> 0 | R46: =SUM(R41:R45) -> 0
E47: De dichtheid is | F47: =IF(H23>0,+(H41+(H42+H43+H44)/100)/H23*10000,0) -> 0 | H47: won(equivalent) per ha: | I47: =IF(F47<31,"suburbaan",IF(F47>100,"hoogstedelijk","stedelijk")) -> suburbaan | J47: woon-werkmlieu
M48: aantekeningen
D50: 7 | E50: Stelt de gemeente bij het Omgevingsplan ook de volgende plannen op? | L50: 7
Q51: FALSE
Q52: FALSE
M55: aantekeningen
D56: 8 | E56: Maakt dit kostenverhaalsbesluit deel uit van een groter Omgevingsplan ? | L56: =+D56 -> 8 | Q56: FALSE | R56: FALSE
E57: zo ja, wat is de verhouding in oppervlakte ten opzichte van dit Omgevingsplan ? | I57: % van het totale Omgevingsplan | Q57: =+H57 -> 0 | R57: =J23/Q57 ->  | S57: ha groot is het omgevingsplan
E58: Het totale Omgevingsplan is dus | F58: =IF(H57>0%,J23/Q57,J23) -> 0 | H58: ha groot
D63: II | E63: aanleg van nieuwe openbare voorzieningen door de gemeente | L63: II | M63: aanleg van nieuwe openbare voorzieningen door de gemeente
E65: Inbreng en verwerving van onroerende zaken ten behoeve van toekomstig openbare voorzieningen die door de gemeente worden aangelegd | L65: vraag
H66: Waardering via Wet WOZ | J66: waardering via onafhankelijke taxatie
D67: 1 | E67: Uit hoeveel kadastrale percelen bestaat het toekomstig openbaar gebied binnen het kostenverhaals gebied en hoeveel daarvan zijn onbebouwd en bebouwd? | I67: totaal | K67: totaal | L67: =+D67 -> 1 | M67: aantekeningen | Q67: =+H67+J67 -> 0
D68: a | E68: aantal onbebouwde percelen | G68: a | I68: stuks | K68: stuks
D69: b | E69: aantal bebouwde percelen | G69: b | I69: stuks | K69: stuks
H70: =IF(SUM(H68:H69)<>H67,"fout","") ->  | I70: =IF(AND(H67>0,J67>0),"klopt dit","") ->  | J70: =IF(SUM(J68:J69)<>J67,"fout","") -> 
D71: 2 | E71: Hoeveel onroerende zaken is de gemeente van plan daadwerkelijk te verwerven tbv het toekomstige openbaar gebied ? | I71: totaal | L71: =+D71 -> 2 | M71: aantekeningen | Q71: =+H71 -> 0
D72: a | E72: waarvan onbebouwde percelen | G72: a | I72: stuks
D73: b | E73: waarvan gebouwen met een woonfunctie | G73: b | I73: stuks
D74: c | E74: waarvan gebouwen met een industriefunctie, winkelfunctie of kantoorfunctie | G74: c | I74: stuks
D75: d | E75: waarvan percelen met bijzondere objecten | G75: d | I75: stuks
I76: =IF(SUM(H72:H75)<>H71,"fout optelling a tm d komt niet overeen met het totaal","") -> 
D77: 3 | E77: Van hoeveel huur(pacht)ontbindingen is sprake ? | I77: stuks | L77: =+D77 -> 3 | M77: aantekeningen
D79: 4 | E79: Indien er met een onteigeningsplan wordt gewerkt | L79: =+D79 -> 4 | M79: aantekeningen
D80: a | E80: voor hoeveel onroerende zaken wordt een onteigeningsbeschikking voorbereid? | F80: =IF(H80>H71,"meer dan het aantal verwervingen","") ->  | G80: a | I80: stuks | Q80: =+H80 -> 0
D81: b | E81: in hoeveel van die gevallen komt het tot een bekrachtingsprocedure onteigeningsbeschikking ? | F81: =IF(H81>H80,"meer dan vraag 4a","") ->  | G81: b | I81: stuks | Q81: =+H81 -> 0 | T81: =IF(H81=1,0.1,(IF(H81>1,0.2,0))) -> 0 | U81: IF III
D84: 5 | E84: Wordt of is een voorkeursrecht gevestigd ? | L84: =+D84 -> 5 | M84: aantekeningen | Q84: FALSE | R84: FALSE | S84: =+IF(Q84=TRUE,1,0) -> 0
E86: Omvang toekomstig openbaar gebied dat door de gemeente wordt aangelegd
D88: 6 | E88: Hoeveel m2 openbaar gebied van het kostenverhaalsgebied wordt door de gemeente aangelegd? Zoals ook in het scenario danwel stedenbouwkundig plan is aangegeven. | F88: =IF(H23>0,+H88/H23,0) -> 0 | I88: m2 openbaar gebied (groen, verharding en water) | L88: =+D88 -> 6 | M88: aantekeningen | Q88: =IF(F88>40%,F88/40%,1) -> 1
D89: a | E89: Hoeveel hiervan is m2 verharding? | I89: m2 verharding | J89: =IF(H89>0,H89/H88,"") -> 
E90: Dus is hiervan m2 groen/water: | H90: =+H88-H89 -> 0 | I90: m2 groen/water | J90: =IF(H90>0,H90/H88,"") -> 
D92: 7 | E92: Stelt de gemeente hiervoor een inrichtingsplan openbare ruimte op ? | L92: =+D92 -> 7 | M92: aantekeningen | Q92: FALSE | R92: FALSE
E95: Civiele en cultuurtechniek ten behoeve van de toekomstige openbare voorzieningen die door de gemeente worden aangelegd
T97: =IF(#REF!=TRUE,1,0) -> 
L98: TRUE
E101: Slopen ten behoeve van de toekomstige openbare voorzieningen die door de gemeente worden aangelegd
D103: 8 | E103: Is sprake van sloop van onroerende zaken ? | L103: =+D103 -> 8 | M103: aantekeningen | Q103: FALSE | R103: FALSE | T103: =IF(Q103=TRUE,1,0) -> 0
F104: =+IF(R103=TRUE,"ga door naar vraag 9","") -> 
D105: a | E105: Zo ja, hoeveel m3 moet er gesloopt worden ? | I105: m3 | T105: =+H105 -> 0
D107: b | E107: Wat voor een soort te slopen onroerende zaken zijn het? Het gaat hoofdzakelijk om:
V108: Invloedsfactor | X108: =+AVERAGE(W109:W110) -> 0
E109: Meerdere antwoorden zijn mogelijk | I109: % | Q109: FALSE | R109: =+H109/100 -> 0 | V109: =IF(Q109=TRUE,-1,0) -> 0 | W109: =+V109*R109 -> 0
E110: =IF(AND(Q109=FALSE,R109>0),"aanzetten ","") ->  | H110: =IF(AND(Q109=TRUE,R109=0),"% invullen","") ->  | Q110: FALSE | R110: =+H111/100 -> 0 | V110: =IF(Q110=TRUE,0,0) -> 0 | W110: =+V110*R110 -> 0
I111: % | R111: =SUM(R109:R110) -> 0
F112: =IF(AND(Q110=FALSE,R110>0),"aanzetten ","") ->  | H112: =IF(AND(Q110=TRUE,R110=0),"% invullen","") ->  | I112: =IF(AND(Q103=TRUE,(R111<>100%)),"fout totaal is niet 100%"," ") -> 
D114: c | E114: In hoeveel bestekken worden deze m3 gesloopt? | I114: =IF(H114>0,H105/H114,"") ->  | J114: =IF(H114>0,"m3 per bestek","") ->  | Q114: =+H114 -> 0
E117: =IF(R118=TRUE,"ga door naar vraag 8f","") -> 
D118: d | E118: Is er sprake van asbest in de te slopen onroerende zaken? | I118: =IF(AND(Q118=FALSE,T120>0),"fout er is geen sprake van asbest","") ->  | Q118: FALSE | R118: FALSE | T118: =+IF(Q118=TRUE,1,0) -> 0
D120: e | E120: Zo ja, in hoeveel procent van het totaal aantal te slopen m3 is sprake van asbest ? | I120: % | K120: =IF(AND(Q118=TRUE,T120>100%),"fout"," ") ->  | T120: =+H120/100 -> 0
H121: =IF(AND(T118=1,T120<=0),"percentage invullen ","") -> 
D122: f | E122: Op welke wijze wordt het slopen aanbesteed ? | H122: procentueel aantal aanbestedingen | V122: IF | X122: =IF(Q103=TRUE,+AVERAGE(W123:W127),0) -> 0
E123: Meerdere antwoorden zijn mogelijk | I123: % | Q123: FALSE | R123: =+H123 -> 0 | V123: =IF(Q123=TRUE,0,0) -> 0 | W123: =V123*(R123/R126) -> 
E124: =IF(AND(Q123=FALSE,R123>0),"aanzetten ","") ->  | H124: =IF(AND(Q123=TRUE,R123=0),"percentage invullen","") ->  | Q124: FALSE | R124: =+H125 -> 0
I125: % | Q125: FALSE | R125: =+H127 -> 0 | V125: =IF(Q124=TRUE,0.25,0) -> 0 | W125: =V125*(R124/R126) -> 
E126: =IF(AND(Q124=FALSE,R124>0),"aanzetten ","") ->  | H126: =IF(AND(Q124=TRUE,R124=0),"percentage invullen","") ->  | R126: =SUM(R123:R125) -> 0
I127: % | V127: =IF(Q125=TRUE,1,0) -> 0 | W127: =V127*(R125/R126) -> 
E128: =IF(AND(Q125=FALSE,R125>0),"aanzetten ","") ->  | H128: =IF(AND(Q125=TRUE,R125=0),"percentage invullen","") ->  | I128: =IF(AND(Q103=TRUE,H127+H125+H123<>100),"het totaal is meer of minder dan 100%","") -> 
E130: Ophogen/voorbelasten ten behoeve van de toekomstige openbare voorzieningen die door de gemeente worden aangelegd
E131: =IF(R132=TRUE," ga door naar vraag 10"," ") -> 
D132: 9 | E132: Is sprake van ophoging danwel voorbelasting ? | L132: =+D132 -> 9 | M132: aantekeningen | Q132: FALSE | R132: FALSE | S132: =IF(Q132=TRUE,1,0) -> 0
D135: a | E135: In hoeveel deelplannen/fasen wordt er opgehoogd/voorbelast? | G135: a | I135: deelplan/fase
D136: b | E136: Wat is de gemiddelde te verwachten zettingstijd? | G136: b | I136: jaar
D137: c | E137: Wat is de gemiddelde hoogte van de voorbelasting? | G137: c | I137: m1
E140: Bouw en woonrijpmaken ten behoeve van de toekomstige openbare voorzieningen die door de gemeente worden aangelegd
D142: 10 | E142: Is sprake van bouw-en of woonrijpmaken ? | L142: =+D142 -> 10 | M142: aantekeningen | Q142: FALSE | R142: FALSE | S142: =IF(Q142=TRUE,1,0) -> 0
E144: =IF(R142=TRUE," ga door naar produktenlijst"," ") -> 
D145: a | E145: Op welke wijze wordt het bouw-en woonrijpmaken aanbesteed ? | H145: procentueel aantal aanbestedingen | W145: IF | Y145: =IF(Q142=TRUE,+AVERAGE(X146:X148),0) -> 0
E146: Meerdere antwoorden zijn mogelijk | I146: % | Q146: FALSE | R146: =+H146 -> 0 | W146: =IF(Q146=TRUE,0,0) -> 0 | X146: =W146*(R146/R149) -> 
E147: =IF(AND(Q146=FALSE,R146>0),"aanzetten ","") ->  | H147: =IF(AND(Q146=TRUE,R146=0),"percentage invullen","") ->  | Q147: FALSE | R147: =+H148 -> 0 | W147: =IF(Q147=TRUE,0.25,0) -> 0 | X147: =W147*(R147/R149) -> 
I148: % | Q148: FALSE | R148: =+H150 -> 0 | W148: =IF(Q148=TRUE,1,0) -> 0 | X148: =W148*(R148/R149) -> 
E149: =IF(AND(Q147=FALSE,R147>0),"aanzetten ","") ->  | H149: =IF(AND(Q147=TRUE,R147=0),"percentage invullen","") ->  | R149: =SUM(R146:R148) -> 0
E150: =IF(AND(Q148=FALSE,R148>0),"aanzetten ","") ->  | I150: %
H151: =IF(AND(Q148=TRUE,R148=0),"percentage invullen","") ->  | I151: =IF(AND(Q142=TRUE,H150+H148+H146<>100),"het totaal is meer of minder dan 100%","") -> 
D154: b | E154: Is er sprake van bodemsanering ? | I154: =IF(AND(Q154=FALSE,S156>0),"fout","") ->  | Q154: FALSE | R154: FALSE | T154: =IF(Q154=TRUE,1,0) -> 0
D156: c | E156: Zo ja, in hoeveel procent van het openbaar gebied is hier sprake van ? | I156: % | J156: =IF(AND(Q154=FALSE,S156>0),"zet vraag 10 b op ja","") ->  | S156: =+H156 -> 0
H157: =IF(AND(Q154=TRUE,H156=0),"% aangeven","") -> 

Sheet Produktenlijst
F6: =+Vragenlijst!C7 -> Plankostenregels bij kostenverhaal ZONDER tijdvak
F9: Produkten/werkzaamheden
L10: Invloedsfactoren : | N10: omschrijving: | R10: Tarieven na 1 oktober 2024 excl btw | S10: €€/uur | U10: Tarieven na 1 oktober 2024 excl btw | V10: €€/uur
F11: Datum | H11: =+Vragenlijst!F10 -> 2024-02-28 | R11: Beleidsafdelingen | S11: 151 | U11: Bestekschrijven/calculeren | V11: 119
F12: Gemeente | H12: =+Vragenlijst!F11 -> …. | L12: I Ligging kostenverhaalsgebied | M12: =+Vragenlijst!V26 -> 0 | N12: =+Hulpblad!F60 ->  | R12: Communicatie | S12: 132 | U12: Civiel technisch ontwerpen | V12: 151
F13: Projectnaam | H13: =+Vragenlijst!F12 -> …. | L13: II Type opgave | M13: =+Vragenlijst!V31 -> 0 | N13: =+Vragenlijst!Q32 ->  | R13: Civiel technisch projectleiden | S13: 151 | U13: Civiel technisch tekenen | V13: 107
F14: Kostenverhaalsgebied | H14: =+Vragenlijst!F13 -> …. | L14: III Verwervingssituatie | M14: =+Vragenlijst!T81 -> 0 | N14: =+Vragenlijst!Q81 -> 0 | O14: onteigeningsbeschikkingen | R14: Grondzaken | S14: 151 | U14: Directievoeren | V14: 132
F15: Scenario | H15: =+Vragenlijst!F14 -> …. | L15: IV Type programma | M15: =+Vragenlijst!V43 -> 0 | N15: =CONCATENATE(Vragenlijst!S41, Vragenlijst!S42, Vragenlijst!S43, Vragenlijst!S44,Vragenlijst!S45) ->  | R15: Landmeten/vastgoedinformatie | S15: 119 | U15: Toezichthouden | V15: 107
L16: V Onderzoeken | M16: =+Vragenlijst!V36 -> 0 | N16: =CONCATENATE(Vragenlijst!R35, Vragenlijst!R36) ->  | P16: =CONCATENATE(Vragenlijst!R37, Vragenlijst!V38) ->  | R16: Omgevingsrecht | S16: 151
L17: VI Woon-werkmilieu | M17: =+IF(Vragenlijst!I47="suburbaan",0%,IF(Vragenlijst!I47="stedelijk",-100%,-150%)) -> 0 | N17: =+Vragenlijst!I47 -> suburbaan | R17: Planeconomie | S17: 151
R18: Projectmanagement | S18: 171
R19: Projectmanagementassistentie | S19: 119
L20: (I tm V) complexiteitsfactor | M20: algemeen | N20: =1+AVERAGE(M12:M16) -> 1 | R20: Stedenbouw | S20: 151
L21: (I,II,V, VI) complexiteitsfactor | M21: stedenbouw | N21: =1+(M12+M13+M16+M17)/4 -> 1
B23: tbv macro | G23: Produkten/werkzaamheden | L23: welke discilines werken aan het produkt? | M23: Aantal | N23: Uren of bedrag | O23: Tarief | P23: complexiteitsfactor van toepassing? | R23: Totaal in euro's | S23: =S25+S62 -> 0 | U23: Totaal in uren | V23: =V25+V62 -> 0
G25: 1 | H25: Omgevingsplan | S25: =SUM(S27:S60) -> 0 | V25: =SUM(V27:V60) -> 0
B27: TRUE | C27: =+IF(D27=TRUE,1,0) -> 0 | D27: FALSE | G27: 1.1 | H27: Opstellen van een scenario tbv vaststellen kostenplafond | L27: Stedenbouw,beleid, | S27: =SUM(R28:R30) -> 0 | V27: =SUM(U28:U30) -> 0
I28: Opstellen scenario | L28: civiel, planeconomie | M28: 1 | N28: =IF(Vragenlijst!Q51=TRUE,Hulpblad!B188,Hulpblad!B195) -> 132 | O28: =+S20 -> 151 | P28: ja | Q28: =+IF(P28="ja",$N$20,100%) -> 1 | R28: =Q28*O28*N28*M28*C$27 -> 0 | U28: =C$27*M28*N28*Q28 -> 0
L29: Projectmanagement | M29: 0.1 | N29: =+N28 -> 132 | O29: =+S18 -> 171 | P29: ja | Q29: =+IF(P29="ja",$N$20,100%) -> 1 | R29: =Q29*O29*N29*M29*C$27 -> 0 | U29: =C$27*M29*N29*Q29 -> 0
L30: Landmeten/vastgoedinformatie | M30: 0.01 | N30: =+N29 -> 132 | O30: =+S15 -> 119 | P30: ja | Q30: =+IF(P30="ja",$N$20,100%) -> 1 | R30: =Q30*O30*N30*M30*C27 -> 0 | U30: =C27*M30*N30*Q30 -> 0
B31: TRUE | C31: =+IF(D31=TRUE,1,0) -> 0 | D31: FALSE | G31: 1.2 | H31: Opstellen en vaststellen omgevingsplan | S31: =SUM(R32:R37) -> 0 | V31: =SUM(U32:U37) -> 0
I32: opstellen en vaststellen omgevingsplan | L32: Omgevingsrecht jurist incl digitalisering/kaartmateriaal | M32: 1 | N32: =+Hulpblad!B165 -> 60 | O32: =+S16 -> 151 | P32: ja | Q32: =+IF(P32="ja",$N$20,100%) -> 1 | R32: =Q32*O32*N32*M32*D31 -> 0 | U32: =C$31*M32*N32*Q32 -> 0
L33: Projectmanagement | M33: 0.075 | N33: =+N32 -> 60 | O33: =+S18 -> 171 | P33: ja | Q33: =+IF(P33="ja",$N$20,100%) -> 1 | R33: =Q33*O33*N33*M33*D$31 -> 0 | U33: =C$31*M33*N33*Q33 -> 0
L34: Stedenbouw | M34: 0.1 | N34: =+N32 -> 60 | O34: =+S20 -> 151 | P34: ja | Q34: =+IF(P34="ja",$N$20,100%) -> 1 | R34: =Q34*O34*N34*M34*D$31 -> 0 | U34: =C$31*M34*N34*Q34 -> 0
L35: Planeconomie | M35: 0.01 | N35: =+N33 -> 60 | O35: =+S17 -> 151 | P35: ja | Q35: =+IF(P35="ja",$N$20,100%) -> 1 | R35: =Q35*O35*N35*M35*D$31 -> 0 | U35: =C$31*M35*N35*Q35 -> 0
L36: Beleldsafdelingen | M36: 0.1 | N36: =+N34 -> 60 | O36: =+S11 -> 151 | P36: ja | Q36: =+IF(P36="ja",$N$20,100%) -> 1 | R36: =Q36*O36*N36*M36*D$31 -> 0 | U36: =C$31*M36*N36*Q36 -> 0
L37: Communicatie | M37: 0.05 | N37: =+N35 -> 60 | O37: =+S12 -> 132 | P37: ja | Q37: =+IF(P37="ja",$N$20,100%) -> 1 | R37: =Q37*O37*N37*M37*D$31 -> 0 | U37: =C$31*M37*N37*Q37 -> 0
S38: =SUM(R39:R40) -> 0 | V38: =SUM(U39:U40) -> 0
I39: opstellen regels kostenverhaal | L39: Grondzaken en planeconomie | M39: 1 | N39: =+Hulpblad!H188 -> 38 | O39: =+S14 -> 151 | P39: ja | Q39: =+IF(P39="ja",$N$20,100%) -> 1 | R39: =Q39*O39*N39*M39*D31 -> 0 | U39: =D$31*M39*N39*Q39 -> 0
L40: Projectmanagement | M40: 0.1 | N40: =+N39 -> 38 | O40: =+S18 -> 171 | P40: ja | Q40: =+IF(P40="ja",$N$20,100%) -> 1 | R40: =Q40*O40*N40*M40*D$31 -> 0 | U40: =D$31*M40*N40*Q40 -> 0
B42: =+Vragenlijst!Q51 -> FALSE | C42: =+IF(D42=TRUE,1,0) -> 0 | D42: FALSE | G42: 1.3 | H42: Stedenbouwkundig plan | S42: =SUM(R43:R50) -> 0 | V42: =SUM(U43:U50) -> 0
I43: uur per gebouw met een woonfunctie (aantal woningen) | L43: Stedenbouw | M43: =+Vragenlijst!H41 -> 0 | N43: 1.5 | O43: =+S20 -> 151 | P43: CF stedenbouw | Q43: =+N21 -> 1 | R43: =Q43*O43*N43*M43*C42 -> 0 | U43: =C42*M43*N43*Q43 -> 0
I44: uur per 100 m2 grond of 100 m2 bvo met andere kostenverhaalsplichtige bouwactiviteiten dan woningbouw | L44: Stedenbouw | M44: =+Vragenlijst!Q46/100 -> 0 | N44: 0.25 | O44: =+S20 -> 151 | P44: CF stedenbouw | Q44: =+N21 -> 1 | R44: =Q44*O44*N44*M44*C42 -> 0 | U44: =C42*M44*N44*Q44 -> 0
I45: opslag uren bij maatschappelijke functies | L45: Stedenbouw | M45: =IF(Vragenlijst!Q44>1,1,0) -> 0 | N45: =40 -> 40 | O45: =+S20 -> 151 | P45: CF stedenbouw | Q45: =+N21 -> 1 | R45: =Q45*O45*N45*M45*C42 -> 0 | U45: =C42*M45*N45*Q45 -> 0
L46: Projectmanagement | M46: 0.15 | N46: =+N43*M43+N44*M44+N45*M45 -> 0 | O46: =+S18 -> 171 | P46: CF stedenbouw | Q46: =+N21 -> 1 | R46: =Q46*O46*N46*M46*C42 -> 0 | U46: =C42*M46*N46*Q46 -> 0
L47: Planeconomie | M47: 0.1 | N47: =+N46 -> 0 | O47: =+S17 -> 151 | P47: CF stedenbouw | Q47: =+N21 -> 1 | R47: =Q47*O47*N47*M47*C42 -> 0 | U47: =C42*M47*N47*Q47 -> 0
L48: Communicatie | M48: 0.075 | N48: =+N47 -> 0 | O48: =+S12 -> 132 | P48: CF stedenbouw | Q48: =+N21 -> 1 | R48: =Q48*O48*N48*M48*C42 -> 0 | U48: =C42*M48*N48*Q48 -> 0
L49: Civiele techniek | M49: 0.1 | N49: =+N48 -> 0 | O49: =+S13 -> 151 | P49: CF stedenbouw | Q49: =+N21 -> 1 | R49: =Q49*O49*N49*M49*C42 -> 0 | U49: =C42*M49*N49*Q49 -> 0
L50: Landmeten/vastgoedinformatie | M50: 0.01 | N50: =+N49 -> 0 | O50: =+S15 -> 119 | P50: CF stedenbouw | Q50: =+N21 -> 1 | R50: =Q50*O50*N50*M50*C42 -> 0 | U50: =C42*M50*N50*Q50 -> 0
B53: =+Vragenlijst!Q52 -> FALSE | C53: =+IF(D53=TRUE,1,0) -> 0 | D53: FALSE | G53: 1.4 | H53: Beeldkwaliteitsplan | S53: =SUM(R54:R59) -> 0 | V53: =SUM(U54:U59) -> 0
I54: uur per gebouw met een woonfunctie | L54: Stedenbouw | M54: =+Vragenlijst!H41 -> 0 | N54: 0.5 | O54: =+S20 -> 151 | P54: nee | Q54: =+IF(P54="ja",$N$20,100%) -> 1 | R54: =Q54*O54*N54*M54*C53 -> 0 | U54: =C53*M54*N54*Q54 -> 0
I55: uur per 100 m2 grond of 100 m2 bvo met andere kostenverhaalsplichtige bouwactiviteiten dan woningbouw | L55: Stedenbouw | M55: =+Vragenlijst!Q46/100 -> 0 | N55: =0.25 -> 0.25 | O55: =+S20 -> 151 | P55: nee | Q55: =+IF(P55="ja",$N$20,100%) -> 1 | R55: =Q55*O55*N55*M55*C53 -> 0 | U55: =C53*M55*N55*Q55 -> 0
I56: opslag uren bij maatschappelijke functies | L56: Stedenbouw | M56: =IF(Vragenlijst!Q44>1,1,0) -> 0 | N56: =40 -> 40 | O56: =+S20 -> 151 | P56: nee | Q56: =+IF(P56="ja",$N$20,100%) -> 1 | R56: =Q56*O56*N56*M56*C53 -> 0 | U56: =C53*M56*N56*Q56 -> 0
L57: Projectmanagement | M57: 0.1 | N57: =+N54*M54+N55*M55+N56*M56 -> 0 | O57: =+S18 -> 171 | P57: nee | Q57: =+IF(P57="ja",$N$20,100%) -> 1 | R57: =Q57*O57*N57*M57*C53 -> 0 | U57: =C53*M57*N57*Q57 -> 0
L58: Planeconomie | M58: 0.025 | N58: =+N57 -> 0 | O58: =+S17 -> 151 | P58: nee | Q58: =+IF(P58="ja",$N$20,100%) -> 1 | R58: =Q58*O58*N58*M58*C53 -> 0 | U58: =C53*M58*N58*Q58 -> 0
L59: Landmeten/vastgoedinformatie | M59: 0.01 | N59: =+N58 -> 0 | O59: =+S15 -> 119 | P59: nee | Q59: =+IF(P59="ja",$N$20,100%) -> 1 | R59: =Q59*O59*N59*M59*C53 -> 0 | U59: =C53*M59*N59*Q59 -> 0
G62: 2 | H62: Werkzaamheden ten behoeve van het uitvoeren van het omgevingsplan | S62: =SUM(S64:S123) -> 0 | V62: =SUM(V64:V123) -> 0
B64: =+IF(Vragenlijst!Q67>0,TRUE,FALSE) -> FALSE | C64: =+IF(D64=TRUE,1,0) -> 0 | D64: FALSE | G64: 2.1 | H64: Taxatie inbrengwaarde percelen | I64: Via onafhankelijke taxatie | S64: =IF((R65+R66)<(4*S14),((4*S14)+R67+R68+R69)*M67,SUM(R65:R69)) -> 0 | V64: =IF((U65+U66)<4,(4+U67+U69+U68)*M67,SUM(U65:U69)) -> 0
C65: =+M65+M66 -> 0 | I65: uur per onbebouwd perceel | L65: Taxateur | M65: =+Vragenlijst!J68 -> 0 | N65: 1 | O65: =+S14 -> 151 | P65: nee | Q65: =+IF(P65="ja",$N$20,100%) -> 1 | R65: =Q65*O65*N65*M65*C64 -> 0 | U65: =C$64*M65*N65*Q65 -> 0
I66: uur per bebouwd perceel | L66: Taxateur | M66: =+Vragenlijst!J69 -> 0 | N66: 2 | O66: =+S14 -> 151 | P66: nee | Q66: =+IF(P66="ja",$N$20,100%) -> 1 | R66: =Q66*O66*N66*M66*C64 -> 0 | U66: =C$64*M66*N66*Q66 -> 0
I67: ambtelijke begeleiding onderzoek | L67: Planeconomie | M67: =IF(C65>=1,1,0) -> 0 | N67: 16 | O67: =+S14 -> 151 | P67: nee | Q67: =+IF(P67="ja",$N$20,100%) -> 1 | R67: =Q67*O67*N67*M67*C64 -> 0 | U67: =C$64*M67*N67*Q67 -> 0
L68: Projectmanagement | M68: 0.05 | N68: =+N65*M65+N66*M66+N67*M67 -> 0 | O68: =+S18 -> 171 | P68: nee | Q68: =+IF(P68="ja",$N$20,100%) -> 1 | R68: =Q68*O68*N68*M68*C64 -> 0 | U68: =C64*M68*N68*Q68 -> 0
L69: Landmeten/vastgoedinformatie | M69: 0.01 | N69: =+N68 -> 0 | O69: =+S15 -> 119 | P69: nee | Q69: =+IF(P69="ja",$N$20,100%) -> 1 | R69: =Q69*O69*N69*M69*C64 -> 0 | U69: =C64*M69*N69*Q69 -> 0
I71: Via Wet WOZ | S71: =SUM(R72:R75) -> 0 | V71: =SUM(U72:U75) -> 0
I72: uur per onbebouwd perceel | L72: Planeconomie/grondzaken | M72: =+Vragenlijst!H68 -> 0 | N72: 0.25 | O72: =+S14 -> 151 | P72: nee | Q72: =+IF(P72="ja",$N$20,100%) -> 1 | R72: =Q72*O72*N72*M72*C64 -> 0 | U72: =C$64*M72*N72*Q72 -> 0
I73: uur per bebouwd perceel | L73: Planeconomie/grondzaken | M73: =+Vragenlijst!H69 -> 0 | N73: 0.25 | O73: =+S14 -> 151 | P73: nee | Q73: =+IF(P73="ja",$N$20,100%) -> 1 | R73: =Q73*O73*N73*M73*C64 -> 0 | U73: =C$64*M73*N73*Q73 -> 0
L74: Projectmanagement | M74: 0.05 | N74: =N72*M72+N73*M73 -> 0 | O74: =+S18 -> 171 | P74: nee | Q74: =+IF(P74="ja",$N$20,100%) -> 1 | R74: =Q74*O74*N74*M74*C64 -> 0 | U74: =C$64*M74*N74*Q74 -> 0
L75: Landmeten/vastgoedinformatie | M75: 0.01 | N75: =+N74 -> 0 | O75: =+S15 -> 119 | P75: nee | Q75: =+IF(P75="ja",$N$20,100%) -> 1 | R75: =Q75*O75*N75*M75*C64 -> 0 | U75: =C64*M75*N75*Q75 -> 0
S76: =+R77 -> 0 | V76: =+U77 -> 0
I77: Hertaxatie inbrengwaarde (vijfjaarlijks) | M77: =+IF(Vragenlijst!H19<=5,0,(IF(Vragenlijst!H19<=10,1,IF(Vragenlijst!H19<=15,2,(IF(Vragenlijst!H19<=20,3,IF(Vragenlijst!H19<=25,4,IF(Vragenlijst!H19<=30,5,IF(Vragenlijst!H19<=35,6,IF(Vragenlijst!H19<=40,7,IF(Vragenlijst!H19<=45,8,IF(Vragenlijst!H19<=50,9,IF(Vragenlijst!H19<=55,10,IF(Vragenlijst!H19<=60,11,12)))))))))))))) -> 0 | N77: =+S64+S71 -> 0 | P77: nee | Q77: =+IF(P77="ja",$N$20,100%) -> 1 | R77: =N77*M77*C64 -> 0 | U77: =(+V64+V71)*M77 -> 0
B79: =+IF(Vragenlijst!Q71>0,TRUE,FALSE) -> FALSE | C79: =+IF(D79=TRUE,1,0) -> 0 | D79: FALSE | G79: 2.2 | H79: Taxatie en aankoop onroerende zaak | S79: =SUM(R80:R89) -> 0 | V79: =SUM(U80:U89) -> 0
I80: uur per onbebouwde perceel | L80: Grondzaken | M80: =+Vragenlijst!H72 -> 0 | N80: 24 | O80: =+S14 -> 151 | P80: nee | Q80: =+IF(P80="ja",$N$20,100%) -> 1 | R80: =Q80*O80*N80*M80*C$79 -> 0 | U80: =C$79*M80*N80*Q80 -> 0
I81: uur per gebouw met een woonfunctie | L81: Grondzaken | M81: =+Vragenlijst!H73 -> 0 | N81: 48 | O81: =+S14 -> 151 | P81: nee | Q81: 1 | R81: =Q81*O81*N81*M81*C$79 -> 0 | U81: =C$79*M81*N81*Q81 -> 0
I82: uur per gebouw met een industriefunctie, winkelfunctie of kantoorfunctie | L82: Grondzaken | M82: =IF(Vragenlijst!Q31=TRUE,0,Vragenlijst!H74) -> 0 | N82: 80 | O82: =+S14 -> 151 | P82: nee | Q82: 1 | R82: 0 | U82: 0
I83: uur per gebouw met een industriefunctie, winkelfunctie of kantoorfunctie in herstructurering | L83: Grondzaken | M83: =IF(Vragenlijst!Q31=TRUE,Vragenlijst!H74,0) -> 0 | N83: 100 | O83: =+S14 -> 151 | P83: nee | Q83: 1 | R83: 0 | U83: 0
I84: uur per byzonder object | L84: Grondzaken | M84: =IF(Vragenlijst!Q31=TRUE,0,Vragenlijst!H75) -> 0 | N84: 80 | O84: =+S14 -> 151 | P84: nee | Q84: 1 | R84: 0 | U84: 0
I85: uur per byzonder object in herstructurering | L85: Grondzaken | M85: =IF(Vragenlijst!Q31=TRUE,Vragenlijst!H75,0) -> 0 | N85: 100 | O85: =S14 -> 151 | P85: nee | Q85: 1 | R85: 0 | U85: 0
I86: uur per huur of pachtontbinding | L86: Grondzaken | M86: =+Vragenlijst!H77 -> 0 | N86: 48 | O86: =S14 -> 151 | P86: nee | Q86: =+IF(P86="ja",$N$20,100%) -> 1 | R86: =Q86*O86*N86*M86*C$79 -> 0 | U86: =C$79*M86*N86*Q86 -> 0
L87: Projectmanagement | M87: 0.1 | N87: =+N82*M82+N83*M83+N80*M80+N81*M81+N84*M84+N85*M85+M86*N86 -> 0 | O87: =+S18 -> 171 | P87: nee | Q87: 1 | R87: =Q87*O87*N87*M87*C79 -> 0 | U87: =C79*M87*N87*Q87 -> 0
L88: Planeconomie | M88: 0.05 | N88: =+N87 -> 0 | O88: =+S17 -> 151 | P88: nee | Q88: 1 | R88: =Q88*O88*N88*M88*C79 -> 0 | U88: =C79*M88*N88*Q88 -> 0
L89: Landmeten/vastgoedinformatie | M89: 0.01 | N89: =+N88 -> 0 | O89: =+S15 -> 119 | P89: nee | Q89: 1 | R89: =Q89*O89*N89*M89*C79 -> 0 | U89: =C79*M89*N89*Q89 -> 0
B91: =IF(Vragenlijst!Q80>0,TRUE,FALSE) -> FALSE | C91: =+IF(D91=TRUE,1,0) -> 0 | D91: FALSE | G91: 2.3 | H91: Onteigenen van onroerende zaken | S91: =SUM(R92:R97) -> 0 | V91: =SUM(U92:U97) -> 0
I92: uur per procedure van de voorbereiding van een onteigeningsbeschikking | L92: Grondzaken | M92: =+Vragenlijst!H80 -> 0 | N92: 134 | O92: =S14 -> 151 | P92: nee | Q92: =+IF(P92="ja",$N$20,100%) -> 1 | R92: =Q92*O92*N92*M92*C$91 -> 0 | U92: =C$91*M92*N92*Q92 -> 0
I93: uur per bekrachtigingsprocedure onteigeningsbeschikking | L93: Grondzaken | M93: =+Vragenlijst!H81 -> 0 | N93: 50 | O93: =S14 -> 151 | P93: nee | Q93: =+IF(P93="ja",$N$20,100%) -> 1 | R93: =Q93*O93*N93*M93*C$91 -> 0 | U93: =C$91*M93*N93*Q93 -> 0
I94: vast bedrag advocaatkosten per onteigeningsbeschikking | L94: Advocatuur | M94: =+M93 -> 0 | N94: 38532 | P94: nee | Q94: =+IF(P94="ja",$N$20,100%) -> 1 | R94: =Q94*N94*M94*C$91 -> 0
L95: Projectmanagement | M95: 0.1 | N95: =+M92*N92+N93*M93 -> 0 | O95: =+S18 -> 171 | P95: nee | Q95: =+IF(P95="ja",$N$20,100%) -> 1 | R95: =Q95*O95*N95*M95*C91 -> 0 | U95: =C91*M95*N95*Q95 -> 0
L96: Planeconomie | M96: 0.05 | N96: =+N95 -> 0 | O96: =+S17 -> 151 | P96: nee | Q96: =+IF(P96="ja",$N$20,100%) -> 1 | R96: =Q96*O96*N96*M96*C91 -> 0 | U96: =C91*M96*N96*Q96 -> 0
L97: Landmeten/vastgoedinformatie | M97: 0.01 | N97: =+N96 -> 0 | O97: =+S15 -> 119 | P97: nee | Q97: =+IF(P97="ja",$N$20,100%) -> 1 | R97: =Q97*O97*N97*M97*C91 -> 0 | U97: =C91*M97*N97*Q97 -> 0
B99: =+Vragenlijst!Q84 -> FALSE | C99: =+IF(D99=TRUE,1,0) -> 0 | D99: FALSE | G99: 2.4 | H99: Vestigen voorkeursrecht | S99: =SUM(R100:R103) -> 0 | V99: =SUM(U100:U103) -> 0
I100: uur voor vestiging voorkeursrecht | L100: Grondzaken | M100: =+Vragenlijst!S84 -> 0 | N100: 60 | O100: =+S14 -> 151 | P100: nee | Q100: =+IF(P100="ja",$N$20,100%) -> 1 | R100: =Q100*O100*N100*M100*C$99 -> 0 | U100: =C$99*M100*N100*Q100 -> 0
L101: Projectmanagement | M101: 0.1 | N101: =+M100*N100 -> 0 | O101: =+S18 -> 171 | P101: nee | Q101: =+IF(P101="ja",$N$20,100%) -> 1 | R101: =Q101*O101*N101*M101*C99 -> 0 | U101: =C99*M101*N101*Q101 -> 0
L102: Planeconomie | M102: 0.05 | N102: =+N101 -> 0 | O102: =+S17 -> 151 | P102: nee | Q102: =+IF(P102="ja",$N$20,100%) -> 1 | R102: =Q102*O102*N102*M102*C99 -> 0 | U102: =C99*M102*N102*Q102 -> 0
L103: Landmeten/vastgoedinformatie | M103: 0.01 | N103: =+N102 -> 0 | O103: =+S15 -> 119 | P103: nee | Q103: =+IF(P103="ja",$N$20,100%) -> 1 | R103: =Q103*O103*N103*M103*C99 -> 0 | U103: =C99*M103*N103*Q103 -> 0
B105: =+Vragenlijst!Q92 -> FALSE | C105: =+IF(D105=TRUE,1,0) -> 0 | D105: FALSE | G105: 2.5 | H105: Inrichtingsplan Openbare ruimte (openbare voorzieningen die de gemeente aanlegt) | S105: =SUM(R106:R111) -> 0 | V105: =SUM(U106:U111) -> 0
I106: uur per 100 m2 verharding | L106: Stedenbouw,civiel | M106: =+Vragenlijst!H89/100 -> 0 | N106: 1.5 | O106: =+S20 -> 151 | P106: nee | Q106: =+IF(P106="ja",$N$20,100%) -> 1 | R106: =Q106*O106*N106*M106*C105 -> 0 | U106: =C$105*M106*N106*Q106 -> 0
I107: uur per 100 m2 groen/water | L107: Stedenbouw,civiel | M107: =+(Vragenlijst!H88-Vragenlijst!H89)/100 -> 0 | N107: 1 | O107: =+S20 -> 151 | P107: nee | Q107: =+IF(P107="ja",$N$20,100%) -> 1 | R107: =Q107*O107*N107*M107*C105 -> 0 | U107: =C$105*M107*N107*Q107 -> 0
L108: Projectmanagement | M108: 0.05 | N108: =+N106*M106+N107*M107 -> 0 | O108: =+S18 -> 171 | P108: nee | Q108: =+IF(P108="ja",$N$20,100%) -> 1 | R108: =Q108*O108*N108*M108*C105 -> 0 | U108: =C105*M108*N108*Q108 -> 0
L109: Planeconomie | M109: 0.025 | N109: =+N108 -> 0 | O109: =+S17 -> 151 | P109: nee | Q109: =+IF(P109="ja",$N$20,100%) -> 1 | R109: =Q109*O109*N109*M109*C105 -> 0 | U109: =C105*M109*N109*Q109 -> 0
L110: Communicatie | M110: 0.05 | N110: =+N108 -> 0 | O110: =+S12 -> 132 | P110: nee | Q110: =+IF(P110="ja",$N$20,100%) -> 1 | R110: =Q110*O110*N110*M110*C105 -> 0 | U110: =C105*M110*N110*Q110 -> 0
L111: Landmeten/vastgoedinformatie | M111: 0.01 | N111: =+N110 -> 0 | O111: =+S15 -> 119 | P111: nee | Q111: =+IF(P111="ja",$N$20,100%) -> 1 | R111: =Q111*O111*N111*M111*C105 -> 0 | U111: =C105*M111*N111*Q111 -> 0
B113: =IF((Vragenlijst!T103+Vragenlijst!S132+Vragenlijst!S142)>0,TRUE,FALSE) -> FALSE | C113: =+IF(D113=TRUE,1,0) -> 0 | D113: FALSE | G113: 2.6 | H113: Voorbereiding, toezicht en directievoering (openbare voorzieningen die de gemeente aanlegt) | S113: =SUM(R114:R116) -> 0 | V113: =SUM(U114:U116) -> 0
H114: a | I114: slopen | L114: Ingenieursbureau | M114: 1 | N114: =+Hulpblad!G48 -> 0 | O114: 1 | P114: ja | Q114: =+N20 -> 1 | R114: =Q114*O114*N114*M114*C$113 -> 0 | U114: =+Hulpblad!I48*C113*Q114 -> 0
H115: b | I115: ophogen/voorbelasten | L115: Ingenieursbureau | M115: =+Vragenlijst!S132 -> 0 | N115: =+Hulpblad!G158 -> 0 | O115: 1 | P115: nee | Q115: =+IF(P115="ja",$N$20,100%) -> 1 | R115: =Q115*O115*N115*M115*C$113 -> 0
H116: c | I116: bouw en woonrijpmaken | L116: Ingenieursbureau | M116: 1 | N116: =+Hulpblad!G107 -> 0 | O116: 1 | P116: ja | Q116: =+N20 -> 1 | R116: =Q116*O116*N116*M116*C$113 -> 0 | U116: =+Hulpblad!I107*C113*Q116 -> 0
G118: 2.7 | H118: Algemene en financiele verantwoording en aansturing van het project | S118: =SUM(R120:R122) -> 0 | V118: =SUM(U120:U122) -> 0
B119: TRUE | C119: =+IF(D119=TRUE,1,0) -> 0 | D119: FALSE | H119: inclusief bestuurlijke besluitvorming
I120: a. projectmanagement uur per jaar | L120: Projectmanagement | M120: =+Vragenlijst!J20 -> 0 | N120: =30 -> 30 | O120: =+S18 -> 171 | P120: ja | Q120: =+IF(P120="ja",$N$20,100%) -> 1 | R120: =Q120*O120*N120*M120*C119 -> 0 | U120: =C$119*M120*N120*Q120 -> 0
I121: b. projectassistentie uur per jaar mits complexiteitsfactor > 130% | L121: Projectassistentie | M121: =+IF(N20>130%,Vragenlijst!J20,0) -> 0 | N121: 100 | O121: =+S19 -> 119 | P121: ja | Q121: =+IF(P121="ja",$N$20,100%) -> 1 | R121: =Q121*O121*N121*M121*C119 -> 0 | U121: =C$119*M121*N121*Q121 -> 0
I122: c. financieel management uur per jaar | L122: Planeconomie | M122: =+Vragenlijst!J20 -> 0 | N122: =64 -> 64 | O122: =+S17 -> 151 | P122: ja | Q122: =+IF(P122="ja",$N$20,100%) -> 1 | R122: =Q122*O122*N122*M122*C119 -> 0 | U122: =C$119*M122*N122*Q122 -> 0

Sheet Resultaat
C3: =+Vragenlijst!C7 -> Plankostenregels bij kostenverhaal ZONDER tijdvak
C5: Resultaat
D6: Datum | E6: =+Vragenlijst!F10 -> 2024-02-28
D7: Gemeente | E7: =+Vragenlijst!F11 -> ….
D8: Projectnaam | E8: =+Vragenlijst!F12 -> ….
D9: Kostenverhaalsgebied | E9: =+Vragenlijst!F13 -> ….
D10: Scenario | E10: =+Vragenlijst!F14 -> ….
D12: Complexiteit van het project | E12: =+Produktenlijst!N20 -> 1
D13: looptijd in jaren: | E13: =+Vragenlijst!J20 -> 0
E14: uren | F14: euro's
D15: =+Produktenlijst!H25 -> Omgevingsplan | E15: =SUM(E16:E19) -> 0 | F15: =SUM(F16:F19) -> 0
C16: =+Produktenlijst!G27 -> 1.1 | D16: =+Produktenlijst!H27 -> Opstellen van een scenario tbv vaststellen kostenplafond | E16: =+Produktenlijst!V27 -> 0 | F16: =+Produktenlijst!S27 -> 0
C17: =+Produktenlijst!G31 -> 1.2 | D17: =+Produktenlijst!H31 -> Opstellen en vaststellen omgevingsplan | E17: =+Produktenlijst!V31+Produktenlijst!V38 -> 0 | F17: =+Produktenlijst!S31+Produktenlijst!S38 -> 0 | H17: TRUE
C18: =+Produktenlijst!G42 -> 1.3 | D18: =+Produktenlijst!H42 -> Stedenbouwkundig plan | E18: =+Produktenlijst!V42 -> 0 | F18: =+Produktenlijst!S42 -> 0
C19: =+Produktenlijst!G53 -> 1.4 | D19: =+Produktenlijst!H53 -> Beeldkwaliteitsplan | E19: =+Produktenlijst!V53 -> 0 | F19: =+Produktenlijst!S53 -> 0 | H19: TRUE
H20: TRUE
D21: =+Produktenlijst!H62 -> Werkzaamheden ten behoeve van het uitvoeren van het omgevingsplan | E21: =SUM(E22:E28) -> 0 | F21: =SUM(F22:F28) -> 0
C22: =+Produktenlijst!G64 -> 2.1 | D22: =+Produktenlijst!H64 -> Taxatie inbrengwaarde percelen | E22: =+Produktenlijst!V64+Produktenlijst!V71+Produktenlijst!V76 -> 0 | F22: =+Produktenlijst!S64+Produktenlijst!S71+Produktenlijst!S76 -> 0
C23: =+Produktenlijst!G79 -> 2.2 | D23: =+Produktenlijst!H79 -> Taxatie en aankoop onroerende zaak | E23: =+Produktenlijst!V79 -> 0 | F23: =+Produktenlijst!S79 -> 0
C24: =+Produktenlijst!G91 -> 2.3 | D24: =+Produktenlijst!H91 -> Onteigenen van onroerende zaken | E24: =+Produktenlijst!V91 -> 0 | F24: =+Produktenlijst!S91 -> 0
C25: =+Produktenlijst!G99 -> 2.4 | D25: =+Produktenlijst!H99 -> Vestigen voorkeursrecht | E25: =+Produktenlijst!V99 -> 0 | F25: =+Produktenlijst!S99 -> 0 | H25: TRUE
C26: =+Produktenlijst!G105 -> 2.5 | D26: =+Produktenlijst!H105 -> Inrichtingsplan Openbare ruimte (openbare voorzieningen die de gemeente aanlegt) | E26: =+Produktenlijst!V105 -> 0 | F26: =+Produktenlijst!S105 -> 0 | H26: FALSE
C27: =+Produktenlijst!G113 -> 2.6 | D27: =+Produktenlijst!H113 -> Voorbereiding, toezicht en directievoering (openbare voorzieningen die de gemeente aanlegt) | E27: =+Produktenlijst!V113 -> 0 | F27: =+Produktenlijst!S113 -> 0
C28: =+Produktenlijst!G118 -> 2.7 | D28: =+Produktenlijst!H118 -> Algemene en financiele verantwoording en aansturing van het project | E28: =+Produktenlijst!V118 -> 0 | F28: =+Produktenlijst!S118 -> 0 | H28: FALSE
D30: Totaal kostenverhaal | E30: =+E21+E15 -> 0 | F30: =+F21+F15 -> 0
H34: FALSE
E52: =SUM(E50:E51) -> 0

Sheet Hulpblad
C1: =+Vragenlijst!C7 -> Plankostenregels bij kostenverhaal ZONDER tijdvak
C2: HULPBLAD
B5: Plankosten SLOPEN
B7: Op te halen variabelen uit vragen- en produktenlijst
C8: Is sprake van slopen? | F8: =IF(+Vragenlijst!Q103=TRUE,"ja","nee") -> nee | G8: =+IF(F8="nee",0,1) -> 0
C9: Aantal m3 | F9: =+Vragenlijst!H105 -> 0 | G9: m3
C10: Verrekenfactor | F10: =1+Vragenlijst!X108 -> 1 | G10: gemiddeld type te slopen onroerende zaak
C11: Aantal bestekken vlg vragenlijst | F11: =+Vragenlijst!H114 -> 0 | G11: stuks
C12: Verrekenfactor | F12: =1+Vragenlijst!X122 -> 1 | G12: wijze van aanbesteding
C13: Verrekenfactor | F13: =IF(Vragenlijst!Q118=TRUE,"ja","nee") -> nee | G13: =IF(F13="ja",(1+Vragenlijst!H120/100),0) -> 0 | H13: aanwezigheid asbest
C15: Tarief CT projectleider | F15: =+Produktenlijst!S13 -> 151 | G15: per uur
C16: Tarief bestekschrijver/calculator | F16: =+Produktenlijst!V11 -> 119 | G16: per uur
C17: Tarief directievoerder | F17: =+Produktenlijst!V14 -> 132 | G17: per uur
C18: Tarief toezichthouder | F18: =+Produktenlijst!V15 -> 107 | G18: per uur
B20: Uitgangspunten slopen
B22: Voorbereiding, aanbesteding en gunning
C23: Bestekschrijver/calculator | F23: 12 | G23: uur per bestek
C24: Verrekenfactor | F24: =+F12 -> 1 | G24: wijze van aanbesteding
B26: Directievoeren en toezichthouden
C27: Uitvoeringstijd | F27: 8 | G27: uur per 300 m3 (1 woning)
C28: Totaal uitvoeringstijd | F28: =+F9/300*F27 -> 0 | G28: uur
C29: Verrekenfactor | F29: =+F10 -> 1 | G29: type te slopen onroerende zaak
C30: Verrekenfactor | F30: =+F12 -> 1 | G30: wijze van aanbesteding
C31: Verrekenfactor | F31: =+G13 -> 0 | G31: aanwezigheid asbest
C32: Directievoering | F32: =1 -> 1 | G32: uur per week gedurende uitvoeringstijd
C33: Toezichthouden | F33: =4*1 -> 4 | G33: uur per week gedurende uitvoeringstijd
B35: Projectleiding
C36: Begeleiding aanbesteding | F36: 4 | G36: uur per bestek
C37: Verrekenfactor | F37: =+F12 -> 1 | G37: wijze van aanbesteding
C38: Werkzaamheden tijdens de uitvoering | F38: =0.25*1 -> 0.25 | G38: uur per week gedurende uitvoeringstijd
C39: Verrekenfactor | F39: =+F10 -> 1 | G39: type te slopen onroerende zaak
C40: Verrekenfactor | F40: =+G13 -> 0 | G40: aanwezigheid asbest
B42: Plankosten | G42: euro's | I42: uren
C44: Aanbesteding en gunning | G44: =+F23*F11*F24*F16 -> 0 | I44: =+F23*F11*F24 -> 0
C45: Directievoering en toezicht | G45: =+(((F28)/40*(F29)*(F30)*F31*F32*F17)+((F28)/40*(F29)*(F30)*F31*F33*F18)) -> 0 | I45: =+(((F28)/40*(F29)*(F30)*F31*F32)+((F28)/40*(F29)*(F30)*F31*F33)) -> 0
C46: Projectleiding | G46: =+(F36*F11*F15*(F37)+(F38*(F28)/40*F15*F39*F40)) -> 0 | I46: =+(F36*F11*(F37)+(F38*(F28)/40*F39*F40)) -> 0
B48: Totaal plankosten SLOPEN | G48: =SUM(G44:G46)*G8 -> 0 | I48: =SUM(I44:I46)*G8 -> 0
B52: Plankosten BOUW EN WOONRIJPMAKEN
B54: Op te halen variabelen uit vragen- en produktenlijst
C55: Is sprake van bouw-en woonrijpmaken | F55: =IF(+Vragenlijst!Q142=TRUE,"ja","nee") -> nee | G55: =+IF(F55="nee",0,1) -> 0
C56: Kostenverhaalsgebied | F56: =+Vragenlijst!H23/10000 -> 0 | G56: ha
C57: Ha openbaar gebied | F57: =+Vragenlijst!H88/10000 -> 0 | G57: ha
C58: Aantal kostenverhaalsdeelgebieden openbaar gebied volgens de norm | F58: =+(F57/2) -> 0 | G58: (2 ha per deelgebied openbaar gebied) | M58: verhouding openbaar/uitgeefbaar tov norm | N58: =+Vragenlijst!Q88 -> 1
C59: Aantal kostenverhaalsdeelgebieden openbaar gebied cf verhouding grondgebruik | F59: =+F58*N71 -> 0 | M59: hulptabel te berekenen aantal deelgebieden
C60: Type locatie | F60: =CONCATENATE(Vragenlijst!Q30,Vragenlijst!R30,Vragenlijst!S30,Vragenlijst!T30,Vragenlijst!U30) ->  | M60: % t.o.v. norm | N60: verrekeningsfactor
C61: Aantal bestekken dat bij het type locatie hoort | F61: =IF(F60="uitleglocatie",2*F59,IF(F60="uitbreidingslocatie",2*F59,1.5*F59)) -> 0 | M61: 1 | N61: 1
C63: Verrekenfactor | F63: =1+Vragenlijst!Y145 -> 1 | G63: wijze van aanbesteden | M63: 1.12 | N63: 1.05
C64: Is sprake van bodemsanering ? | F64: =+IF(Vragenlijst!Q154=TRUE,"ja","nee") -> nee | G64: =+Vragenlijst!S156/100 -> 0 | H64: van het exploitatiegebied | M64: 1.25 | N64: 1.1
M65: 1.38 | N65: 1.15
C66: Tarief CT projectleider | F66: =+Produktenlijst!S13 -> 151 | G66: per uur | M66: 1.5 | N66: 1.2
C67: Tarief CT ontwerper | F67: =+Produktenlijst!V12 -> 151 | G67: per uur | M67: 1.5 | N67: 1.2
C68: Tarief bestekschrijver/calculator | F68: =+Produktenlijst!V11 -> 119 | G68: per uur
C69: Tarief CT tekenaar | F69: =+Produktenlijst!V13 -> 107 | G69: per uur
C70: Tarief directievoerder | F70: =+Produktenlijst!V14 -> 132 | G70: per uur
C71: Tarief toezichthouder | F71: =+Produktenlijst!V15 -> 107 | G71: per uur | M71: te hanteren verreken % t.o.v. norm deelgebieden: | N71: =IF(N58<$M$61,$N$61,IF(N58<$M$63,$N61+((N58-$M$61)/($M$63-$M$61))*($N$63-$N$61), IF(N58<$M$64,$N$63+((N58-$M$63)/($M$64-$M$63))*($N$64-$N$63), IF(N58<$M$65,$N$64+((N58-$M$64)/($M$65-$M$64))*($N$65-$N$64), IF(N58<$M$66,$N$65+((N58-$M$65)/($M$66-$M$65))*($N$66-$N$65), IF(N58<$M$67,$N$66+((N58-$M$66)/($M$67-$M$66))*($N$67-$N$66),$N$67)))))) -> 1
B73: Uitgangspunten BOUW EN WOONRIJPMAKEN
B75: Ontwerp VO en DO:
C76: Aantal kostenverhaalsdeelgebieden | F76: =+F59 -> 0 | G76: deelgebieden
C77: Uren CT ontwerper | F77: 160 | G77: per ontwerp VO en DO per kostenverhaalsdeelgebied
C78: Rioleringsplan | F78: 7.5 | G78: uur per ha
B80: Aanbesteding en gunning
C81: Aantal bestekken | F81: =+F61 -> 0 | G81: brm en wrm
C82: Verrekenfactor | F82: =+F63 -> 1 | G82: wijze van aanbesteding
C83: Bestekschrijver/calculator | F83: 40 | G83: uur per bestek
C84: CT tekenaar | F84: 24 | G84: uur per bestek
B86: Directievoering en toezicht
C87: Uitvoeringstijd BWRM (2 bestekken) | F87: 12 | G87: maanden
C88: Extra uitvoeringstijd BRM ivm bodemsanering | F88: =+IF(F64="ja",2*G64,0) -> 0 | G88: maanden
C89: Totaal uitvoeringstijd bestekken | F89: =+(F87+F88)*F61/2 -> 0 | G89: maanden
C90: Verrekenfactor | F90: =+F63 -> 1 | G90: wijze van aanbesteding
C91: Directievoering | F91: 5 | G91: uur per week gedurende uitvoeringstijd
C92: Toezichthouden | F92: 10 | G92: uur per week gedurende uitvoeringstijd
B94: Projectleiding
C95: Begeleiding ontwerp | F95: 24 | G95: uur per ontwerp VO en DO
C96: Begeleiding aanbesteding | F96: 16 | G96: uur per bestek
C97: Verrekenfactor | F97: =+F63 -> 1 | G97: wijze van aanbesteding
C98: Werkzaamheden tijdens uitvoering | F98: 1 | G98: uur per week gedurende uitvoeringstijd
B100: Plankosten | G100: euro's | I100: uren
C102: Ontwerpen | G102: =(+F76*F77*F67+F78*F56*F67)*G55 -> 0 | I102: =(+F76*F77+F78*F56)*G55 -> 0
C103: Aanbesteding en gunning | G103: =+F81*F83*F68*(F82)+F81*F84*F69*(F82) -> 0 | I103: =+F81*F83*(F82)+F81*F84*(F82) -> 0
C104: Directievoering en toezicht | G104: =+F89*4*F91*F70*F90+F89*4*F92*F71*F90 -> 0 | I104: =+F89*4*F91*F90+F89*4*F92*F90 -> 0
C105: Projectleiding | G105: =+F95*F59*F66+F96*F61*F66*(F97)+F98*F89*4*F66 -> 0 | I105: =+F95*F58+F96*F61*(F97)+F98*F89*4 -> 0
B107: Totaal plankosten BOUW EN WOONRIJPMAKEN | G107: =SUM(G102:G105)*G55 -> 0 | I107: =SUM(I102:I105)*G55 -> 0
B114: PLANKOSTEN OPHOGEN/VOORBELASTEN
B116: Op te halen variabelen uit plankostenscan
C117: Is sprake van ophogen/voorbelasten? | F117: =IF(+Vragenlijst!Q132=TRUE,"ja","nee") -> nee | G117: =+IF(F117="nee",0,1) -> 0
C118: Omvang verharding | F118: =+Vragenlijst!H89/10000 -> 0 | G118: ha
C119: Hoogte ophogen | F119: =+Vragenlijst!H137 -> 0 | G119: m1
C120: Aantal fases/deelplannen | F120: =+Vragenlijst!H135 -> 0 | G120: stuks
C121: Zettingstijd | F121: =+Vragenlijst!H136 -> 0 | G121: jaar
C122: Tarief directievoerder | F122: =+Produktenlijst!V14 -> 132 | G122: per uur
C123: Tarief toezichthouder | F123: =+Produktenlijst!V15 -> 107 | G123: per uur
B125: Basiskosten ophogen
B126: uitgangspunt: 10 ha en 1 m1 ophogen
C127: Bestek | F127: 12844 | G127: is afhankelijk van grootte werk, naarmate werk groter wordt nemen kosten niet lineair toe, basisprijs wel afhankelijk van integraal of partieel
G128: en aantal fases
C129: Rapportage | F129: 6422 | G129: is afhankelijk van grootte werk, naarmate werk groter wordt nemen kosten niet lineair toe (zie tabel bij bestek)
G131: hulptabel curve grootte werk | L131: hulptabel bestek | O131: hulptabel rapportage
G132: min oppervlak | I132: max oppervlak | K132: percentage | L132: minimaal | M132: maximaal | N132: per ha | O132: minimaal | P132: maximaal | Q132: per ha
G133: 0 | H133: ha | I133: 10 | J133: ha | K133: 1 | L133: =basisbedrag_bestek -> 12844 | M133: =L133 -> 12844 | N133: =CEILING(M133/I133,25) -> 1300 | O133: =basisbedrag_rapportage -> 6422 | P133: =basisbedrag_rapportage -> 6422 | Q133: =CEILING(P133/I133,25) -> 650
G134: =I133 -> 10 | H134: =H133 -> ha | I134: 15 | J134: =J133 -> ha | K134: 0.9 | L134: =M133 -> 12844 | M134: =I134*K134*$N$133 -> 17550 | N134: =CEILING(M134/I134,25) -> 1175 | O134: =P133 -> 6422 | P134: =I134*K134*$Q$133 -> 8775 | Q134: =CEILING(P134/I134,25) -> 600
G135: =I134 -> 15 | H135: =H134 -> ha | I135: 50 | J135: =J134 -> ha | K135: 0.75 | L135: =M134 -> 17550 | M135: =I135*K135*$N$133 -> 48750 | N135: 975 | O135: =P134 -> 8775 | P135: =I135*K135*$Q$133 -> 24375 | Q135: 500
G136: =I135 -> 50 | H136: =H135 -> ha | I136: 100 | J136: ha | K136: 0.5 | L136: =M135 -> 48750 | M136: =I136*K136*$N$133 -> 65000 | N136: 650 | O136: =P135 -> 24375 | P136: =I136*K136*$Q$133 -> 32500 | Q136: 325
C138: Veldonderzoeken | F138: 2569 | G138: per ha
C139: Monitoring | F139: 1606 | G139: per ha per jaar zettingstijd
C140: Inmeting | F140: 642 | G140: per ha
C141: Directievoering | F141: =(10*10000*$F$119)/$F$147/5*($F$122*4) -> 0 | G141: 1/2 dag per week, gedurende aanbrengtijd, is dus afhankelijk van hoogte en groote werk
C142: Toezichthouden | F142: =(10*10000*$F$119)/$F$147/5*($F$123*4) -> 0 | G142: 1/2 dag per week, gedurende aanbrengtijd, is dus afhankelijk van hoogte en groote werk
B143: Totaal basiskosten ophogen | F143: =SUM(F127:F142) -> 24083 | G143: plangebied 10 ha en 1 m1 integraal ophogen
B145: Rekenkundige uitgangspunten
C146: Grootte van een fase | F146: =IF(aantal_fases=0,0,plangebied/aantal_fases) -> 0 | G146: ha
C147: Levering per as | F147: 1000 | G147: m3 per dag
C148: Uren per week directievoering | F148: 4
C149: Uren per week toezichthouden | F149: 4
B150: Plankosten ophogen
C151: Bestek | G151: =IF(grootte_fase<=$I$133,$M$133,IF(AND(grootte_fase>$G$134,grootte_fase<=$I$134),IF($N$134*grootte_fase<$L$134,$L$134,$N$134*grootte_fase),IF(AND(grootte_fase>$G$135,grootte_fase<=$I$135),IF($N$135*grootte_fase<$L$135,$L$135,$N$135*grootte_fase),IF(grootte_fase>G136,IF(IF($N$136*grootte_fase<$L$136,$L$136,$N$136*grootte_fase)>$M$136,$M$136,IF($N$136*grootte_fase<$L$136,$L$136,$N$136*grootte_fase)),0))))*aantal_fases -> 0
C152: Rapportage | G152: =IF(grootte_fase<=$I$133,$P$133,IF(AND(grootte_fase>$G$134,grootte_fase<=$I$134),IF($Q$134*grootte_fase<$O$134,$O$134,$Q$134*grootte_fase),IF(AND(grootte_fase>$G$135,grootte_fase<=$I$135),IF($Q$135*grootte_fase<$O$135,$O$135,$Q$135*grootte_fase),IF(grootte_fase>G136,IF(IF($Q$136*grootte_fase<$O$136,$O$136,$Q$136*grootte_fase)>$P$136,$P$136,IF($Q$136*grootte_fase<$O$136,$O$136,$Q$136*grootte_fase)),0))))*aantal_fases -> 0
C153: Veldonderzoeken | G153: =IF(+basisbedrag_veldonderzoeken*plangebied<5137,5137,plangebied*basisbedrag_veldonderzoeken) -> 5137
C154: Monitoring | G154: =IF(+basisbedrag_monitoring*zettingstijd*plangebied<3211,3211,plangebied*zettingstijd*basisbedrag_monitoring) -> 3211
C155: Inmeting | G155: =IF(+basisbedrag_inmeting*plangebied<1285,1285,basisbedrag_inmeting*plangebied) -> 1285
C156: Directievoering | G156: =(((+plangebied*ophooghoogte*10000/levering_per_as_per_dag)/5)*tarief_civiel*uren_per_week_directievoering) -> 0
C157: Toezichthouder | G157: =(((plangebied*+ophooghoogte*10000/levering_per_as_per_dag/5)*F123*uren_per_week_toezichthouden)) -> 0
B158: Totaal plankosten ophogen tbv plankostenscan | G158: =SUM(G151:G157)*G117 -> 0
B162: Hulptabel kosten Omgevingsplan
B164: =+Vragenlijst!J23 -> 0 | C164: ha kostenverhaalsgebied | F164: =+IF(Vragenlijst!Q56=TRUE,Vragenlijst!Q57,1) -> 1 | G164: onderdeel van groter
B165: =IF(B164<0.5,B167,(IF(B164<1,B168,IF(B164<3,B169,(IF(B164<5,B170,(IF(B164<10,B171,IF(B164<15,B172,IF(B164<20,B173,IF(B164<=50,B174,B175)))))))))))*F164 -> 60 | C165: uur voor aanpassen omgevingsplanregels | G165: Omgevingsplan
B167: 60 | C167: uur voor kostenverhaalgebied < 0,5 ha
B168: 120 | C168: uur voor kostenverhaalgebied tussen 0,5 ha en 1 ha
B169: 200 | C169: uur voor kostenverhaalgebied tussen 1 ha en 3 ha
B170: 300 | C170: uur voor kostenverhaalgebied tussen 3 ha en 5 ha
B171: 350 | C171: uur voor kostenverhaalgebied tussen 5 ha en 10 ha
B172: 400 | C172: uur voor kostenverhaalgebied tussen 10 ha en 15 ha
B173: 450 | C173: uur voor kostenverhaalgebied tussen 15 ha en 20 ha
B174: 500 | C174: uur voor kostenverhaalgebied tussen 20 ha en 50 ha
B175: 550 | C175: uur voor kostenverhaalgebied groter dan 50 ha
B185: hulptabel opstellen scenario | H185: hulptabel opstellen kostenverhaalsregels
B186: wel een stedenbouwkundig plan:
B187: =+Vragenlijst!Q23 -> 0 | C187: ha kostenverhaalsgebied | H187: =+Vragenlijst!Q23 -> 0 | I187: ha kostenverhaalsgebied | K187: =+F164 -> 1 | L187: =+G164 -> onderdeel van groter
B188: =IF(B187<5,B190,(IF(B187<=20,B191,B192))) -> 56 | C188: uur voor opstellen scenario tbv het omgevingsplan | H188: =IF(H187<0.5,H190,(IF(H187<1,H191,IF(H187<3,H192,(IF(H187<5,H193,(IF(H187<10,H194,IF(H187<15,H195,IF(H187<20,H196,IF(H187<=50,H197,H198)))))))))))*K187 -> 38 | I188: uur voor opstellen kostenverhaalsregels | L188: =+G165 -> Omgevingsplan
B190: 56 | C190: uur voor kostenverhaalgebied < 5 ha | H190: 38 | I190: uur voor kostenverhaalgebied < 0,5 ha
B191: 84 | C191: uur voor kostenverhaalgebied tussen 5 ha en 20 ha | H191: 75 | I191: uur voor kostenverhaalgebied tussen 0,5 ha en 1 ha
B192: 100 | C192: uur voor kostenverhaalgebied groter dan 20 ha | H192: 113 | I192: uur voor kostenverhaalgebied tussen 1 ha en 3 ha
H193: 150 | I193: uur voor kostenverhaalgebied tussen 3 ha en 5 ha
B194: geen stedenbouwkundig plan: | H194: 173 | I194: uur voor kostenverhaalgebied tussen 5 ha en 10 ha
B195: =IF(B187<5,B197,(IF(B187<=20,B198,B199))) -> 132 | C195: uur voor opstellen scenario tbv het omgevingsplan | H195: 188 | I195: uur voor kostenverhaalgebied tussen 10 ha en 15 ha
H196: 300 | I196: uur voor kostenverhaalgebied tussen 15 ha en 20 ha
B197: 132 | C197: uur voor kostenverhaalgebied < 5 ha | H197: 375 | I197: uur voor kostenverhaalgebied tussen 20 ha en 50 ha
B198: 160 | C198: uur voor kostenverhaalgebied tussen 5 ha en 20 ha | H198: 450 | I198: uur voor kostenverhaalgebied groter dan 50 ha
B199: 192 | C199: uur voor kostenverhaalgebied groter dan 20 ha
